[Event "Mongolian Championship Open 2022"]
[Site "Chingis Khentii"]
[Date "2022.05.16"]
[Round "5.6"]
[White "Gan-Erdene, Sugar"]
[Black "Batchuluun, Tsegmed"]
[Result "1-0"]
[ECO "E04"]
[WhiteElo "2419"]
[BlackElo "2536"]
[Annotator "TA"]
[PlyCount "148"]
[EventDate "2022.05.12"]
[EventType "tourn"]
[EventCountry "MGL"]
[SourceTitle "playchess.com"]
[Source "ChessBase"]
[SourceQuality "1"]
[TimeControl "40/5400+30:1800+30"]

{[%evp 11,148,14,14,14,13,18,15,22,14,10,11,16,14,3,3,6,11,11,0,0,16,17,14,0,14,0,0,0,8,0,43,32,34,26,37,45,83,82,114,118,168,171,183,185,189,183,186,182,188,181,183,172,187,185,200,207,242,222,259,259,247,217,243,224,263,255,248,197,264,231,234,246,320,320,386,375,418,403,474,469,600,592,590,587,519,400,718,708,950,516,519,504,773,764,29967,29967,29970,720,29992,6380,3568,2479,1012,0,1081,968,29982,29983,29983,1987,29961,29952,6211,5369,1924,1703,29973,29971,29977,29978,29980,29968,29967,29969,29968,29969,29961,29963,29957,11452,29977,29977,29978,29978,29978,29979,29980,29977,29975]} 1. d4 {[%emt 0:00:03]} Nf6 {[%emt 0:00:13]} 2. c4 {[%emt 0:00:07]} e6 {[%emt 0:00:05]} 3. g3 {[%emt 0:00:24]} d5 {[%emt 0:01:20]} 4. Nf3 {[%emt 0:00:14]} dxc4 {[%emt 0:00:38]} 5. Bg2 {[%emt 0:00:48]} Bb4+ {[%emt 0:00:47]} 6. Bd2 {[%emt 0:02:45]} a5 {[%emt 0:00:06]} 7. Qc2 {[%emt 0:01:21] E04: Open Catalan: 5 Nf3.} Bxd2+ {[%emt 0:00:07]} 8. Qxd2 {[%emt 0:10:48]} c6 {[%emt 0:00:07]} 9. a4 {[%emt 0:04:21] The position is equal.} Ne4 {[%emt 0:00:05]} 10. Qf4 {[%emt 0:04:42]} Qb6 {[%emt 0:00:07] 10...Nd6 is vanishing.} 11. Ne5 {[%emt 0:23:00]} (11. Qxe4 $2 Qxb2 12. O-O Qxa1 $17) 11... f6 {[%emt 0:00:07]} 12. Nxc4 {[%emt 0:14:21]} Qb4+ {[%emt 0:00:06]} 13. Nbd2 {[%emt 0:02:37]} Nxd2 {[%emt 0:00:08]} 14. Nxd2 {[%emt 0:00:11]} O-O {[%emt 0:00:14]} 15. O-O {[%emt 0:04:04]} Nd7 {[%emt 0:00:04]} 16. Qe3 {[%emt 0:01:39] [#]} Nb6 $146 {[%emt 0:00:07]} ({Predecessor:} 16... e5 17. d5 cxd5 18. Bxd5+ Kh8 19. Rfc1 Nb6 20. Bb3 Bd7 21. Ne4 Bc6 22. Nc5 Nd5 23. Bxd5 Bxd5 {0-1 (43) Tomic,A (2365)-Blagojevic,D (2481) Budva 2021}) 17. b3 {[%emt 0:05:10]} Re8 {[%emt 0:02:54]} 18. Nf3 {[%emt 0:03:32] Against e5} e5 {[%emt 0:01:47]} 19. dxe5 {[%emt 0:01:45]} Bg4 {[%emt 0:00:17]} 20. Rac1 {[%emt 0:01:51]} Bxf3 {[%emt 0:24:41]} 21. Bxf3 {[%emt 0:00:14]} Rxe5 {[%emt 0:00:08]} 22. Qd3 {[%emt 0:00:19]} Rae8 {[%emt 0:07:55]} 23. Rfd1 {[%emt 0:01:00]} f5 {[%emt 0:03:16]} 24. e3 {[%emt 0:03:42] Black is now going downhill.} Nd5 {[%emt 0:19:34]} 25. Qd4 {[%emt 0:05:42]} ({Much weaker is} 25. Bxd5+ $6 Rxd5 26. Qc4 Qxc4 27. bxc4 Rxd1+ 28. Rxd1 Re4 $11) 25... Qe7 {[%emt 0:27:05] [#]} (25... Qxb3 $2 26. Rb1 Qa3 27. Rxb7 $18) (25... Qxd4 $16 26. exd4 R5e7) 26. Qc4 $1 $18 {[%emt 0:03:38]} Rd8 {[%emt 0:00:23] [#]} 27. Qc5 $1 {[%emt 0:01:01]} Kf7 {[%emt 0:05:25]} ({Weaker is} 27... Qxc5 28. Rxc5 Kf7 29. Rxa5 $16) 28. Qxa5 {[%emt 0:01:28]} Rd7 {[%emt 0:00:55]} 29. Qd2 {[%emt 0:01:22]} Nf6 {[%emt 0:00:28]} 30. Qc3 {[%emt 0:00:21]} Rxd1+ {[%emt 0:00:21]} 31. Rxd1 {[%emt 0:00:04]} ({Don't do} 31. Bxd1 $6 Ne4 32. Qe1 Rd5 $16) 31... g5 {[%emt 0:01:05]} 32. Qc4+ {[%emt 0:00:33]} Kg6 {[%emt 0:00:20]} 33. b4 {[%emt 0:01:37] Inhibits Qc5.} h6 {[%emt 0:03:36]} 34. h3 {[%emt 0:00:46]} Kg7 {[%emt 0:00:47]} 35. Bg2 {[%emt 0:00:19]} Kg6 {[%emt 0:00:11]} 36. Kh2 {[%emt 0:00:56]} Kg7 {[%emt 0:00:24]} 37. Rd4 {[%emt 0:00:22]} Qf7 {[%emt 0:02:24]} 38. Qc2 {[%emt 0:00:49]} Qe7 {[%emt 0:00:31]} 39. Qd3 {[%emt 0:00:26]} h5 {[%emt 0:00:20]} (39... Qf7 $142 40. f4 gxf4) 40. Qc4 {[%emt 0:00:00]} Kg6 {[%emt 0:00:00]} 41. Qc2 {[%emt 0:06:38]} g4 {[%emt 0:09:37]} 42. h4 {[%emt 0:06:56]} Kg7 {[%emt 0:05:53]} 43. Qd2 {[%emt 0:00:26]} Qf7 {[%emt 0:01:37]} 44. Rd8 {[%emt 0:03:54]} Re8 {[%emt 0:00:46]} 45. Rd6 {[%emt 0:03:19]} Re6 {[%emt 0:00:20]} 46. b5 {[%emt 0:02:27]} cxb5 {[%emt 0:00:06]} 47. axb5 {[%emt 0:00:24]} Rxd6 {[%emt 0:07:52]} 48. Qxd6 {[%emt 0:00:06][%mdl 4096] Endgame KQB-KQN} Qa2 {[%emt 0:03:46]} (48... Qd7 $142 49. Qxd7+ Nxd7 50. Bxb7 Nb6) 49. Qf4 {[%emt 0:03:28]} Qb1 {[%emt 0:02:35]} 50. Bxb7 {[%emt 0:01:08]} Qxb5 {[%emt 0:00:10]} 51. Bc8 {[%emt 0:00:26]} Qf1 {[%emt 0:03:22]} (51... Kg6 $142 52. Qg5+ Kf7 53. Bxf5 Qe5 54. Bg6+ Ke6) 52. Bxf5 {[%emt 0:03:52] White threatens Qg5+ and mate.} Nd5 {[%emt 0:00:24]} 53. Qd4+ {[%emt 0:02:29]} Kf8 {[%emt 0:00:31]} 54. Qd2 {[%emt 0:01:22]} (54. e4 $142 Ne7 55. Be6 Qb5 56. Qh8+ Ng8 57. Bxg8 Qc5 58. Bd5+ Ke7 59. Kg2) 54... Nc3 {[%emt 0:00:49]} 55. Bd3 {[%emt 0:00:35]} (55. Qd6+ $142 Kf7 56. Be6+ Kg6 57. Bc4+ Kh7 58. Qe7+ Kh6 59. Bxf1 Kg6 60. Bd3+ Ne4 61. Bxe4+ Kh6 62. Qh7#) 55... Qa1 {[%emt 0:00:10]} 56. Bc4 {[%emt 0:01:06]} Ke7 {[%emt 0:00:20] Inhibits Qd8+.} 57. Bd3 $2 {[%emt 0:01:11]} (57. e4 $18 {White wants to mate with e5.} Qa5 58. Qd4) 57... Kf6 {[%emt 0:00:29][%mdl 8192]} (57... Kf8 $11 58. e4 Qa5 59. Qf4+ Ke7) 58. e4 {[%emt 0:00:20] Qf4+ would kill now.} Ke5 {[%emt 0:00:19]} 59. Qf4+ {[%emt 0:00:12]} Ke6 {[%emt 0:00:49]} 60. Kg2 {[%emt 0:00:52]} (60. Qc7 $142 Nd5 61. exd5+ Kf6 62. Qd6+ Kf7 63. Qe6+ Kg7 64. Qe7+ Kg8 65. d6) 60... Qe1 {[%emt 0:00:31]} 61. Qf5+ {[%emt 0:00:31]} Kd6 {[%emt 0:00:17]} 62. Qf6+ {[%emt 0:00:12]} Kc5 {[%emt 0:00:12]} 63. Qe5+ {[%emt 0:00:17]} Kb4 {[%emt 0:00:04]} 64. Qd4+ {[%emt 0:00:18]} Kb3 {[%emt 0:00:27]} 65. e5 {[%emt 0:00:33]} Kb2 {[%emt 0:01:02]} 66. e6 {[%emt 0:01:13]} Qxe6 {[%emt 0:00:13]} 67. Qb4+ {[%emt 0:00:04]} Qb3 {[%emt 0:00:54]} 68. Qxb3+ {[%emt 0:00:04]} Kxb3 {[%emt 0:00:06] KB-KN} 69. Bg6 {[%emt 0:00:04]} Nd5 {[%emt 0:00:08]} 70. Bxh5 {[%emt 0:01:10] Threatening mate with Bf7.} Nf6 {[%emt 0:00:06]} 71. Bf7+ {[%emt 0:00:07] White mates.} Kc3 {[%emt 0:00:05]} 72. h5 {[%emt 0:00:15][%cal Bh4h5,Bh5h6][%mdl 32]} Kd4 {[%emt 0:00:06]} 73. h6 {[%emt 0:00:15]} Ke5 {[%emt 0:00:05]} 74. Bg6 {[%emt 0:00:07]} Kd5 {[%emt 0:04:11] Weighted Error Value: White=0.22 (precise) /Black=0.42} 1-0

[Event "Mongolian Championship Open 2022"]
[Site "Chingis Khentii"]
[Date "2022.05.18"]
[Round "6.1"]
[White "Batchuluun, Tsegmed"]
[Black "Bilguun, Sumiya"]
[Result "0-1"]
[ECO "E04"]
[WhiteElo "2536"]
[BlackElo "2454"]
[Annotator "TA"]
[PlyCount "74"]
[EventDate "2022.05.12"]
[EventType "tourn"]
[EventCountry "MGL"]
[SourceTitle "playchess.com"]
[Source "ChessBase"]
[SourceQuality "1"]
[TimeControl "40/5400+30:1800+30"]

{[%evp 15,74,60,56,71,60,29,33,30,31,24,20,0,0,0,0,-25,-16,-15,-9,-30,-22,-59,-54,-62,-55,-60,-30,-50,-36,-37,0,0,-17,-189,-14,-6,-33,-127,-152,-155,-134,-360,-336,-363,-357,-431,-433,-953,-953,-948,-891,-820,-804,-1226,-1227,-29986,-29987,-29987,-29988,-29988,-29989]} 1. d4 {[%emt 0:00:04]} d5 {[%emt 0:01:36]} 2. c4 {[%emt 0:00:13]} e6 {[%emt 0:00:05]} 3. Nf3 {[%emt 0:00:18]} Nf6 {[%emt 0:00:09]} 4. g3 {[%emt 0:00:42]} dxc4 {[%emt 0:00:08]} 5. Bg2 {[%emt 0:00:07]} c6 {[%emt 0:00:07]} 6. a4 {[%emt 0:03:59]} b5 {[%emt 0:05:40]} 7. Ne5 {[%emt 0:17:54]} Nd5 {[%emt 0:07:03]} 8. O-O {[%emt 0:07:07]} Bb7 {[%emt 0:04:46]} 9. e4 {[%emt 0:03:47] E04: Open Catalan: 5 Nf3.} Nf6 {[%emt 0:05:08]} 10. Nc3 {[%emt 0:12:02]} a6 {[%emt 0:08:33]} 11. d5 {[%emt 0:07:37] [#] Strongly threatening dxe6. White is slightly better.} Be7 $1 {[%emt 0:06:47][%cal Rc6d5] is the legacy move (11...cxd5).} 12. dxe6 {[%emt 0:08:53]} fxe6 {[%emt 0:00:15]} 13. Qe2 {[%emt 0:00:24]} O-O {[%emt 0:18:32]} ({Much less strong is} 13... Nbd7 14. Rd1 Qc7 15. Nxd7 Nxd7 16. Qg4 $14) 14. Bh3 {[%emt 0:01:05]} Kh8 {[%emt 0:04:48]} 15. Bxe6 {[%emt 0:01:27] aiming for Nf7+.} Qe8 {[%emt 0:01:38] Against Nf7+} 16. Bf5 {[%emt 0:06:03]} Nbd7 {[%emt 0:02:16]} 17. Nxd7 {[%emt 0:00:49]} Nxd7 {[%emt 0:01:06][%cal Bf6d7,Bd7e5,Be5d3][%mdl 32]} 18. Be3 {[%emt 0:01:59]} Ne5 {[%emt 0:02:17]} 19. f4 {[%emt 0:04:18]} Nd3 {[%emt 0:01:14][%cal Of8f5] [#] White must now prevent ...Rxf5!} 20. Bh3 $146 {[%emt 0:07:03]} ({Predecessor:} 20. Bg4 Bb4 21. e5 Bxc3 22. bxc3 c5 23. axb5 axb5 24. Bf3 Qc8 25. Bxb7 Qxb7 26. Qg2 Qxg2+ 27. Kxg2 {½-½ (32) Cuomo,S (2012)-Huber,K (2084) ICCF email 2008}) 20... b4 {[%emt 0:07:46]} 21. Nd1 {[%emt 0:00:07]} c5 $36 {[%emt 0:00:38][%mdl 2048] Black fights for an advantage.} 22. Nf2 {[%emt 0:00:36]} Bf6 {[%emt 0:02:20]} 23. Bg2 {[%emt 0:02:07]} ({Don't play} 23. e5 {[#]} Bxe5 $1 24. fxe5 Nxe5 $17) 23... Rd8 {[%emt 0:08:00]} (23... Bxb2 $2 24. Nxd3 Bxa1 25. Nxc5 $18) 24. Rfd1 $2 {[%emt 0:05:24]} (24. Rad1 $11 {and White stays safe.}) 24... Qc6 $2 {[%emt 0:03:17]} ({Not} 24... Nxb2 25. Rxd8 Qxd8 26. e5 Bxg2 27. exf6 $11) (24... Bxb2 $19 25. Nxd3 Rxd3 26. Qxb2 Rxe3) 25. Nxd3 $11 {[%emt 0:01:11]} cxd3 {[%emt 0:00:17]} 26. Rxd3 {[%emt 0:00:04]} ({White should play} 26. Qd2 $1 $15) 26... Rxd3 $17 {[%emt 0:00:08]} 27. Qxd3 {[%emt 0:00:04] And now Qe2 would win.} Bxb2 {[%emt 0:00:13]} 28. Rb1 {[%emt 0:00:20]} (28. Rd1 $17) 28... c4 $19 {[%emt 0:00:15]} 29. Qc2 {[%emt 0:02:03]} c3 {[%emt 0:01:12]} 30. Qb3 {[%emt 0:03:02]} a5 {[%emt 0:01:09]} 31. Bd4 {[%emt 0:00:28]} (31. Kf2 $142 Ba3 32. Rg1) 31... c2 {[%emt 0:02:40]} 32. Qxb2 {[%emt 0:00:04]} cxb1=Q+ {[%emt 0:00:08]} 33. Qxb1 {[%emt 0:00:04]} Rd8 {[%emt 0:00:10]} 34. Qb2 {[%emt 0:00:17]} Qd7 {[%emt 0:00:09]} 35. Bb6 {[%emt 0:00:36]} Qd1+ {[%emt 0:00:29] Black mates.} 36. Bf1 {[%emt 0:00:06]} Ba6 {[%emt 0:00:07][%csl Ga6][%cal Rd1f1]} 37. Qf2 {[%emt 0:03:23]} Rd2 {[%emt 0:00:44] Weighted Error Value: White=0.77/Black=0.10 (very precise)} 0-1

[Event "Mongolian Championship Open 2022"]
[Site "Chingis Khentii"]
[Date "2022.05.18"]
[Round "6.2"]
[White "Batsuren, Dambasuren"]
[Black "Agibileg, Uurtsaikh"]
[Result "1-0"]
[ECO "A62"]
[WhiteElo "2501"]
[BlackElo "2440"]
[Annotator "TA"]
[PlyCount "103"]
[EventDate "2022.05.12"]
[EventType "tourn"]
[EventCountry "MGL"]
[SourceTitle "playchess.com"]
[Source "ChessBase"]
[SourceQuality "1"]
[TimeControl "40/5400+30:1800+30"]

{[%evp 18,103,30,15,14,12,33,38,36,42,46,24,56,48,50,55,58,62,75,85,72,72,68,68,75,77,140,93,89,80,85,73,68,63,77,76,77,70,94,92,98,91,81,86,89,99,103,107,108,94,150,154,177,110,111,102,93,84,48,68,107,104,106,105,97,72,88,83,162,94,88,54,433,410,687,686,868,501,2928,1715,5164,5143,5708,5389,29971,29971,29984,1204]} 1. d4 {[%emt 0:00:04]} Nf6 {[%emt 0:00:21]} 2. c4 {[%emt 0:00:06]} g6 {[%emt 0:00:11]} 3. g3 {[%emt 0:00:08]} Bg7 {[%emt 0:00:14]} 4. Bg2 {[%emt 0:00:06]} O-O {[%emt 0:00:14]} 5. Nc3 {[%emt 0:00:05]} c5 {[%emt 0:00:13]} 6. d5 {[%emt 0:00:05]} d6 {[%emt 0:00:17]} 7. Nf3 {[%emt 0:00:07]} e6 {[%emt 0:00:13]} 8. O-O {[%emt 0:00:08]} exd5 {[%emt 0:00:08]} 9. cxd5 {[%emt 0:00:06]} Re8 {[%emt 0:00:41]} 10. Re1 {[%emt 0:00:08]} Nbd7 {[%emt 0:00:14][%cal Bb8d7,Bd7b6,Bb6c4,Bc4a5][%mdl 32] A62: Modern Benoni: Fianchetto Variation without early ...Nbd7.} 11. e4 {[%emt 0:03:19]} Ng4 {[%emt 0:00:44]} 12. Nh4 {[%emt 0:00:17] [#]} Nb6 $146 {[%emt 0:18:35] White is slightly better.} ({Predecessor:} 12... Nge5 13. f4 Nc4 14. Qe2 Ndb6 15. a4 Na5 16. Qc2 c4 17. Be3 Nb3 18. Rad1 Bd7 {1-0 (46) Verat,L (2353)-Conan,C (2030) France 2003}) 13. h3 {[%emt 0:05:05]} Nf6 {[%emt 0:01:21]} 14. Nf3 {[%emt 0:12:38]} Nc4 {[%emt 0:04:23][%cal Ob7b5]} 15. Qb3 {[%emt 0:08:50]} Na5 {[%emt 0:04:03]} 16. Qc2 $36 {[%emt 0:00:37][%mdl 2048] White has some pressure.} a6 {[%emt 0:02:06]} 17. Bf4 {[%emt 0:07:28]} b5 {[%emt 0:05:17]} 18. Rad1 {[%emt 0:02:58]} Nc4 {[%emt 0:07:16]} 19. b3 {[%emt 0:06:27]} Ne5 {[%emt 0:01:09]} 20. Nxe5 {[%emt 0:02:23]} dxe5 {[%emt 0:00:06]} 21. Be3 {[%emt 0:00:09]} Qd6 {[%emt 0:01:38]} (21... Bd7 $142) 22. a4 {[%emt 0:01:36]} (22. Rc1 $142) 22... Bd7 $16 {[%emt 0:00:35]} 23. Bf1 {[%emt 0:03:22][%cal Ra4b5]} Rab8 {[%emt 0:03:01]} 24. axb5 {[%emt 0:00:51]} axb5 {[%emt 0:00:14]} 25. Ra1 {[%emt 0:00:52]} Rb7 {[%emt 0:07:18] Inhibits Ra7.} 26. Ra5 {[%emt 0:03:32][%cal Rc3b5]} Reb8 {[%emt 0:00:50]} 27. Rea1 {[%emt 0:00:37]} Bf8 {[%emt 0:05:31]} 28. Ra6 {[%emt 0:10:13]} Rb6 {[%emt 0:00:41]} 29. Ra7 {[%emt 0:01:02]} R6b7 {[%emt 0:04:21]} 30. Rxb7 {[%emt 0:06:13]} Rxb7 {[%emt 0:00:17]} 31. Ra8 {[%emt 0:00:15][%cal Oc3b5] Strongly threatening Nxb5!} Ne8 {[%emt 0:00:30]} 32. Nd1 {[%emt 0:04:46]} f5 {[%emt 0:05:32]} 33. f3 {[%emt 0:04:54]} Kf7 {[%emt 0:01:37]} (33... f4 $142) 34. Nf2 {[%emt 0:01:49]} Rc7 {[%emt 0:08:00]} 35. f4 {[%emt 0:07:07]} (35. Nd3 $1 $18) 35... Bg7 {[%emt 0:00:52]} 36. Nd3 {[%emt 0:03:52]} fxe4 {[%emt 0:06:22]} 37. Nxe5+ {[%emt 0:00:08]} Bxe5 {[%emt 0:00:14]} 38. fxe5 {[%emt 0:00:08]} Qxe5 {[%emt 0:05:11]} 39. Qf2+ {[%emt 0:02:46]} Qf6 {[%emt 0:03:35]} 40. Bf4 {[%emt 0:00:00][%mdl 64] Deflection} ({Much weaker is} 40. Bxc5 Qxf2+ 41. Bxf2 Nf6 $11) 40... Rb7 {[%emt 0:00:00][%cal Og6g5]} 41. Qxc5 {[%emt 0:02:10] And now h4 would win.} g5 {[%emt 0:01:56] [#] Against h4} 42. Bd2 {[%emt 0:08:07] Bb4 is the strong threat.} Qe5 {[%emt 0:06:53] [#]} (42... Rc7 $16 {keeps fighting.} 43. Qe3 (43. Qb4 Qe5 $11) 43... Qf5) 43. Qf2+ {[%emt 0:03:40] Chess con chili.} (43. Bb4 $1 $18 {Black must now prevent Qf8+.} Nf6 44. Rf8+ Kg6 45. Bg2 (45. Qf2 Kg7 $11)) 43... Nf6 {[%emt 0:01:46]} 44. Ra6 {[%emt 0:03:20] aiming for g4.} Qf5 {[%emt 0:01:56][%mdl 8192] Loses the game.} (44... Rc7 $1 $14) 45. Qd4 $18 {[%emt 0:00:29]} e3 {[%emt 0:05:30]} (45... Nxd5 $2 46. g4 Qe6 47. Rxe6 $18) (45... Rc7 $142 46. g4 Nxg4) 46. Bxe3 {[%emt 0:01:39]} g4 {[%emt 0:02:10]} 47. Ra2 {[%emt 0:07:17] Threatens to win with Rf2.} Qf3 {[%emt 0:11:08]} (47... Qxd5 $142 48. Rf2 Qxd4 49. Bxd4 gxh3 50. Rxf6+ Kg8) 48. Rf2 {[%emt 0:02:01] Active counter play!} Qxg3+ {[%emt 0:00:06]} 49. Bg2 {[%emt 0:00:18] This bishop pair is nice.} Qh4 {[%emt 0:00:06]} 50. Qf4 {[%emt 0:00:17]} Bf5 {[%emt 0:04:39]} 51. Qxf5 {[%emt 0:00:33]} Re7 {[%emt 0:00:07]} 52. Qg5 {[%emt 0:11:22] Weighted Error Value: White=0.16 (very precise) /Black=0.53} (52. Bg5 $142 Re1+ 53. Rf1 Rxf1+ 54. Kxf1 Qxg5 55. Qxg5 h5 56. Qf5 gxh3 57. Be4) 1-0

[Event "Mongolian Championship Open 2022"]
[Site "Chingis Khentii"]
[Date "2022.05.18"]
[Round "6.3"]
[White "Battulga, Namkhai"]
[Black "Amilal Munkhdalai"]
[Result "0-1"]
[ECO "B48"]
[WhiteElo "2402"]
[BlackElo "2033"]
[Annotator "TA"]
[PlyCount "64"]
[EventDate "2022.05.12"]
[EventType "tourn"]
[EventCountry "MGL"]
[SourceTitle "playchess.com"]
[Source "ChessBase"]
[SourceQuality "1"]
[TimeControl "40/5400+30:1800+30"]

{[%evp 12,64,25,34,32,25,106,116,113,110,133,85,81,-52,-52,-54,-65,-53,-83,-76,-60,-75,-80,-154,-151,-172,-179,-268,-266,-253,-265,-277,-264,-282,-265,-264,-248,-271,-256,-278,-270,-283,-281,-295,-287,-352,-357,-365,-362,-360,-338,-695,-677,-2160,-2043]} 1. e4 {[%emt 0:00:02]} c5 {[%emt 0:00:03]} 2. Nf3 {[%emt 0:00:35]} Nc6 {[%emt 0:00:04]} 3. d4 {[%emt 0:00:57]} cxd4 4. Nxd4 {[%emt 0:00:03]} Qc7 {[%emt 0:00:09]} 5. Nc3 {[%emt 0:02:09]} e6 {[%emt 0:00:05]} 6. Be3 {[%emt 0:06:09]} a6 {[%emt 0:00:06]} 7. f4 {[%emt 0:02:37]} Nxd4 {[%emt 0:17:26] B48: Sicilian: Taimanov: 5 Nc3 Qc7 6 Be3 a6 without Be2.} 8. Qxd4 {[%emt 0:00:12]} Ne7 {[%emt 0:00:05]} (8... b5 $1 $11 {keeps the balance.}) 9. O-O-O $16 {[%emt 0:02:36]} Nc6 {[%emt 0:07:55] White is better.} 10. Qb6 {[%emt 0:01:40] [#]} Qb8 $146 {[%emt 0:14:44]} ({Predecessor:} 10... Qxb6 11. Bxb6 d6 12. Bc7 g5 13. Na4 Bd7 14. Nb6 Ra7 15. Be2 gxf4 16. Bxd6 f3 17. gxf3 Bh6+ 18. f4 {1-0 (18) Lubienski,A-Harman,K (1492) ICCF email 2020}) 11. e5 {[%emt 0:06:55]} (11. g3 $142) 11... d5 {[%emt 0:02:52]} 12. Rxd5 {[%emt 0:03:17]} exd5 $15 {[%emt 0:00:21]} 13. Nxd5 {[%emt 0:00:03]} Be7 {[%emt 0:02:12]} 14. Nc7+ {[%emt 0:01:13]} Kf8 {[%emt 0:00:40][%cal Of8g8]} 15. Bc4 {[%emt 0:02:21]} Qa7 {[%emt 0:24:14] [#] Strongly threatening ...Qxb6.} 16. Nxa8 {[%emt 0:32:32]} Qxa8 {[%emt 0:00:04] Black converts the advantage convincingly.} 17. Rf1 {[%emt 0:11:41]} (17. Bc5 $142 Bxc5 18. Qxc5+ Ke8 19. Bd5) 17... Be6 $17 {[%emt 0:08:45]} 18. Bd3 {[%emt 0:04:06] Hoping for f5.} g6 {[%emt 0:01:25] Threatens to win with ...Nb4.} (18... Bxa2 19. Bc5 $11) 19. f5 {[%emt 0:00:54]} (19. Bd2 {was necessary.}) 19... gxf5 $19 {[%emt 0:01:10]} (19... Bxa2 20. f6 Bd8 21. Qc5+ Ke8 22. b3 $18) 20. Bxf5 {[%emt 0:00:36]} Bxf5 {[%emt 0:00:41]} (20... Bxa2 21. e6 Kg7 22. Be4 $11) 21. Rxf5 {[%emt 0:00:03]} Qc8 {[%emt 0:01:37]} 22. Rf1 {[%emt 0:06:30]} Rg8 {[%emt 0:03:05][%cal Bh8g8,Bg8g4,Bg4e4,Be4e5][%mdl 32]} ({Wrong is} 22... Nxe5 $2 23. Qh6+ Kg8 24. Qh5 $19) ({Worse is} 22... Nb4 23. c3 $19) 23. Qb3 {[%emt 0:00:24][%csl Gf1][%cal Rb3f7]} Nd8 {[%emt 0:01:47]} 24. Bb6 {[%emt 0:05:07]} Ne6 {[%emt 0:03:05]} 25. g3 {[%emt 0:01:46]} Qc6 {[%emt 0:01:02]} 26. Be3 {[%emt 0:01:24]} Rg4 {[%emt 0:02:06]} 27. h3 {[%emt 0:02:15]} Re4 {[%emt 0:00:42][%cal Oe4e3] And now ...Rxe3! would win.} ({Stronger than} 27... Rxg3 28. Bh6+ Rg7 29. Kb1 $15 (29. Bxg7+ Kxg7 30. Qg3+ Bg5+ 31. Kb1 Qe4 $11)) 28. h4 {[%emt 0:03:02]} Rxe5 {[%emt 0:02:38]} 29. Qd3 {[%emt 0:00:05][%cal Od3h7]} Kg8 {[%emt 0:01:38]} 30. Bd2 {[%emt 0:00:35]} Qd5 {[%emt 0:00:37]} 31. Qc3 $2 {[%emt 0:00:46] [#]} (31. Qf3 Qxf3 32. Rxf3) 31... Qxa2 $1 {[%emt 0:00:53][%cal Ra2a1]} 32. Qc8+ {[%emt 0:01:56]} (32. b4 Re4) 32... Bf8 {[%emt 0:00:12] Weighted Error Value: White=0.60/Black=0.09 (flawless)} 0-1

[Event "Mongolian Championship Open 2022"]
[Site "Chingis Khentii"]
[Date "2022.05.18"]
[Round "6.4"]
[White "Gan-Erdene, Sugar"]
[Black "Amartuvshin, Ganzorig"]
[Result "0-1"]
[ECO "B48"]
[WhiteElo "2419"]
[BlackElo "2350"]
[Annotator "TA"]
[PlyCount "56"]
[EventDate "2022.05.12"]
[EventType "tourn"]
[EventCountry "MGL"]
[SourceTitle "playchess.com"]
[Source "ChessBase"]
[SourceQuality "1"]
[TimeControl "40/5400+30:1800+30"]

{[%evp 11,56,16,22,25,33,26,29,40,37,31,16,16,10,0,18,2,18,18,14,0,0,0,6,9,9,4,15,0,0,0,0,0,0,0,0,0,0,0,0,0,0,0,0,-683,-566,-446,-442]} 1. e4 {[%emt 0:00:10]} c5 {[%emt 0:00:05]} 2. Nf3 {[%emt 0:00:05]} e6 {[%emt 0:00:07]} 3. d4 {[%emt 0:00:06]} cxd4 {[%emt 0:00:08]} 4. Nxd4 {[%emt 0:00:05]} Nc6 {[%emt 0:00:07]} 5. Nc3 {[%emt 0:00:06]} Qc7 {[%emt 0:00:32]} 6. Be3 {[%emt 0:00:09]} a6 {[%emt 0:00:12]} 7. Qf3 {[%emt 0:00:50] B48: Sicilian: Taimanov: 5 Nc3 Qc7 6 Be3 a6 without Be2.} Nf6 {[%emt 0:00:57][%cal Of8a3]} 8. O-O-O {[%emt 0:00:24]} Ne5 {[%emt 0:02:00]} 9. Qg3 {[%emt 0:00:07] White has an edge.} b5 {[%emt 0:00:48]} 10. a3 {[%emt 0:03:28] Black must now prevent f4.} Bb7 {[%emt 0:01:05] [#]} 11. Bxb5 $1 {[%emt 0:00:33]} Rc8 $1 {[%emt 0:00:43]} (11... axb5 12. Ndxb5 Qb8 13. Bb6 $16) (11... Nxe4 12. Nxe4 Bxe4 13. Bxd7+ $1 Qxd7 14. Qxe5 $16) 12. Ba4 {[%emt 0:00:41][%cal Od4e6] aiming for Nxe6!} ({But not} 12. Bf4 Nh5 13. Nxe6 (13. Bxe5 $2 Nxg3 14. Bxc7 Nxh1 $19) 13... fxe6 14. Bxe5 Nxg3 $17) 12... Nxe4 {[%emt 0:00:54]} 13. Nxe4 {[%emt 0:00:09]} Bxe4 {[%emt 0:00:17]} 14. Bf4 {[%emt 0:00:43]} Qa5 {[%emt 0:00:53]} 15. Bxe5 {[%emt 0:00:50]} Qxa4 {[%emt 0:00:42]} 16. Rd2 {[%emt 0:00:39]} f6 {[%emt 0:01:31]} 17. Bd6 {[%emt 0:01:16] Strongly threatening Bxf8.} Kf7 {[%emt 0:01:01]} (17... Bxd6 $2 18. Qxd6 Qa5 19. Re1 $18) 18. Re1 {[%emt 0:17:36]} Bg6 $1 {[%emt 0:00:22]} (18... Bxd6 $2 19. Qxd6 Bd5 20. b3 (20. Nf5 Rhe8 $14) 20... Bxb3 21. Nxb3 $18) 19. Bxf8 {[%emt 0:11:08]} Rhxf8 {[%emt 0:00:08]} 20. Qd6 {[%emt 0:00:34]} Kg8 {[%emt 0:01:04] Hoping for ...e5.} 21. f4 {[%emt 0:02:50] Inhibits e5.} Qc4 {[%emt 0:04:42]} 22. Qxd7 {[%emt 0:15:36]} Bf7 $40 {[%emt 0:00:18][%mdl 128] Black mounts an attack.} 23. Nxe6 {[%emt 0:10:49] [#]} Qa2 $146 {[%emt 0:00:09][%cal Ra2a1]} ({Predecessor:} 23... Rfe8 24. f5 Qa2 25. Rd3 Qa1+ 26. Kd2 Qxb2 27. Nc7 Rf8 28. Re7 Qb6 29. Ke2 Qg1 30. Rxf7 Qxg2+ {0-1 (38) Vignesh,N (2476)-Nandhidhaa,P (2240) Ho Chi Minh City 2019}) 24. Rde2 {[%emt 0:21:53]} Qa1+ {[%emt 0:14:46]} 25. Kd2 {[%emt 0:00:05]} Qxb2 {[%emt 0:00:07] Dancing on a razor blade.} 26. Nxf8 {[%emt 0:00:09][%cal Od7d3] Threatens to win with Qd3!} Qc3+ {[%emt 0:02:31]} 27. Kd1 $2 {[%emt 0:00:18][%mdl 8192] [#]} (27. Kc1 $11) 27... Rb8 $1 $19 {[%emt 0:10:08][%cal Rb8b1]} ({And not} 27... Qa1+ 28. Kd2 Qc3+ 29. Kc1 $11) 28. Kc1 {[%emt 0:07:35] Prevents Rb1+. And now Ne6 would win.} Ba2 {[%emt 0:00:59] Weighted Error Value: White=0.41/Black=0.01 (flawless)} 0-1